fUST/lending_fUST_20250805
["ID","MTS","AMOUNT","RATE_DAILY","PERIOD"]
[377414467,1754397327605,5000.0,0.00026871,2]
[377414468,1754397328160,153.0,0.00025,7]
[377414469,1754397328505,153.0,0.0002589,7]
[377414470,1754397335588,5000.0,0.00026871,2]
[377414471,1754397344514,5000.0,0.00026871,2]
[377414472,1754397352484,235.98887934,0.00026871,2]
[377414473,1754397361215,327.18114529,0.00026871,2]
[377414474,1754397361239,4672.81885471,0.00026871,2]
[377414476,1754397376893,5000.0,0.00026871,2]
[377414477,1754397389742,250.0,0.00025583,2]
[377414478,1754397391692,601.7367763,0.00025946,2]
[377414479,1754397394277,5000.0,0.00026871,2]
[377414480,1754397405400,265.066362,0.00027397,120]
[377414481,1754397405673,813.38872209,0.00024965,2]
[377414482,1754397410595,5000.0,0.00026871,2]
[377414483,1754397426462,5000.0,0.00026871,2]
[377414484,1754397432002,155.0,0.00025,7]
[377414488,1754397438908,3507.0556469,0.0002519,2]
[377414489,1754397438931,1492.9443531,0.0002519,2]
[377414490,1754397439163,3042.1131575,0.00019178,2]
[377414491,1754397442717,5000.0,0.00026871,2]
[377414492,1754397457090,5905.63633858,0.000249,2]
[377414493,1754397457191,5905.63633838,0.000249,2]
[377414494,1754397457294,5905.63633838,0.000249,2]
[377414495,1754397457390,2748.03347406,0.000249,2]
[377414496,1754397457421,3157.60286432,0.000249,2]
[377414497,1754397457488,5905.63633838,0.000249,2]
[377414498,1754397457698,5905.63633838,0.000249,2]
[377414499,1754397457803,5905.63633838,0.000249,2]
[377414500,1754397457910,5905.63633838,0.000249,2]
[377414501,1754397458003,3219.85178216,0.00025455,3]
[377414502,1754397458031,2685.78455622,0.00025455,3]
[377414503,1754397458091,5905.63633838,0.00026762,6]
[377414504,1754397460538,5000.0,0.00026871,2]
[377414505,1754397476268,5000.0,0.00026871,2]
[377414506,1754397492031,5000.0,0.00026871,2]
[377414507,1754397499780,165.42,0.00023818,2]
[377414508,1754397500161,150.0,0.00023964,2]
[377414509,1754397506283,1000.0,0.00025935,2]
[377414510,1754397508193,5000.0,0.00026871,2]
[377414511,1754397525192,93.1591054,0.00026871,2]
[377414512,1754397525217,4906.8408946,0.00026871,2]
[377414513,1754397527791,160.0,0.0002,3]
[377414514,1754397540729,5000.0,0.00026871,2]
[377414515,1754397555618,265.633313,0.00025778,2]
[377414516,1754397555939,265.633313,0.00026044,2]
[377414517,1754397556316,176.380062,0.00026067,2]
[377414518,1754397556713,5000.0,0.00026871,2]
[377414519,1754397572416,269.443947,0.00025935,2]
[377414520,1754397573203,5000.0,0.00026871,2]
[377414521,1754397589857,5000.0,0.00026871,2]
[377414522,1754397605961,3956.0684704,0.00026871,2]
[377414523,1754397605989,1043.9315296,0.00026871,2]
[377414524,1754397606872,28956.0684704,0.00021,2]
[377414525,1754397606899,2029.75867652,0.00021,2]
[377414526,1754397621496,5000.0,0.00026871,2]
[377414527,1754397621772,4284.27557883,0.000249,2]
[377414528,1754397621868,4284.27557873,0.000249,2]
[377414529,1754397621948,4284.27557873,0.000249,2]
[377414530,1754397622037,4284.27557873,0.000249,2]
[377414531,1754397622166,4284.27557873,0.000249,2]
[377414532,1754397622251,1548.86342973,0.000249,2]
[377414533,1754397622283,2735.412149,0.000249,2]
[377414534,1754397622412,4284.27557873,0.000249,2]
[377414535,1754397622453,4284.27557873,0.000249,2]
[377414536,1754397622552,4284.27557873,0.00025455,3]
[377414537,1754397622672,4284.27557873,0.00026762,6]
[377414538,1754397624857,10000.0,0.00030137,120]
[377414539,1754397639260,5000.0,0.00026871,2]
[377414540,1754397650389,150.0,0.00023942,2]
[377414541,1754397650991,500.0,0.00030555,120]
[377414542,1754397654790,4977.48553608,0.00026871,2]
[377414543,1754397654815,22.51446392,0.00026871,2]
[377414544,1754397670658,13624.0048603,0.00025931,2]
[377414545,1754397671989,5000.0,0.00026871,2]
[377414546,1754397676582,229.051235,0.00026762,6]
[377414547,1754397686951,359.8,0.00026566,2]
[377414548,1754397688364,5000.0,0.00026871,2]
[377414549,1754397704287,152.0,0.000268,10]
[377414550,1754397707237,833.59264622,0.00024965,2]
[377414551,1754397707725,4779.03679456,0.00026871,2]
[377414552,1754397707749,220.96320544,0.00026871,2]
[377414553,1754397723739,5000.0,0.00026871,2]
[377414554,1754397723830,150.0,0.00023942,2]
[377414555,1754397739738,5000.0,0.00026871,2]
[377414556,1754397756881,5000.0,0.00026871,2]
[377414557,1754397774376,5000.0,0.00026871,2]
[377414558,1754397790685,4677.01462863,0.000249,2]
[377414559,1754397790799,4677.01462845,0.000249,2]
[377414560,1754397790933,275.00753748,0.000249,2]
[377414561,1754397790962,4402.00709097,0.000249,2]
[377414562,1754397791036,4677.01462845,0.000249,2]
[377414563,1754397791069,5000.0,0.00026871,2]
[377414564,1754397791145,4677.01462845,0.000249,2]
[377414565,1754397791222,4677.01462845,0.000249,2]
[377414566,1754397791333,4677.01462845,0.000249,2]
[377414567,1754397791421,181.22591477,0.000253,2]
[377414568,1754397791454,1708.70848046,0.000249,2]
[377414569,1754397791482,2968.30614799,0.000249,2]
[377414570,1754397791545,4677.01462845,0.00025455,3]
[377414571,1754397791631,4677.01462845,0.00026762,6]
[377414572,1754397796755,150.0,0.00024901,2]
[377414573,1754397806765,206.28856532,0.00025205,30]
[377414574,1754397808252,5000.0,0.00026871,2]
[377414575,1754397824127,5000.0,0.00026871,2]
[377414576,1754397840309,5000.0,0.00026871,2]
[377414577,1754397842910,300.0,0.0002687,2]
[377414578,1754397856757,2021.37602979,0.00026871,2]
[377414579,1754397856782,2978.62397021,0.00026871,2]
[377414580,1754397857721,266.57627998,0.00026065,2]
[377414581,1754397865059,150.0,0.00023964,2]
[377414582,1754397865765,150.0,0.00025105,2]
[377414583,1754397874248,5000.0,0.00026871,2]
[377414584,1754397884842,666.0,0.00025925,2]
[377414585,1754397890708,5000.0,0.00026871,2]
[377414586,1754397893321,2884.6244581,0.0002685,2]
[377414587,1754397902389,1200.0,0.0002687,2]
[377414588,1754397902657,300.0,0.0002687,2]
[377414589,1754397908777,5000.0,0.00026871,2]
[377414590,1754397911510,266.5778796,0.00026132,2]
[377414591,1754397914746,6137.59741211,0.00025925,2]
[377414592,1754397914772,18762.40258789,0.00025925,2]
[377414593,1754397925454,5000.0,0.00026871,2]
[377414595,1754397940986,5000.0,0.00026871,2]
[377414596,1754397946258,1237.59741211,0.000249,2]
[377414597,1754397946292,2146.40175859,0.000249,2]
[377414598,1754397946346,3383.9991705,0.000249,2]
[377414599,1754397946439,3383.9991705,0.000249,2]
[377414600,1754397946644,3383.9991705,0.000249,2]
[377414601,1754397946757,3383.9991705,0.000249,2]
[377414602,1754397946847,3383.9991705,0.000249,2]
[377414603,1754397946955,3383.9991705,0.000249,2]
[377414604,1754397947058,3383.9991705,0.000249,2]
[377414605,1754397947184,3383.9991705,0.00025455,3]
[377414606,1754397947265,781.60487741,0.00026762,6]
[377414607,1754397947297,2602.39429309,0.00026762,6]
[377414609,1754397960114,5000.0,0.00026871,2]
[377414610,1754397963616,300.0,0.0002687,2]
[377414611,1754397972976,782.64274432,0.00026806,2]
[377414612,1754397978496,5000.0,0.00026871,2]
[377414613,1754397982112,967.367659,0.00025923,2]
[377414614,1754397993492,915.0,0.0002687,2]
[377414615,1754397993892,5000.0,0.00026871,2]
[377414616,1754398007787,160.15683092,0.00026773,2]
[377414617,1754398008497,814.74254374,0.00024771,2]
[377414618,1754398009591,5000.0,0.00026871,2]
[377414619,1754398023555,300.0,0.0002687,2]
[377414620,1754398025556,3157.69592893,0.00026871,2]
[377414621,1754398025578,1842.30407107,0.00026871,2]
[377414622,1754398040359,441.084274,0.00013699,2]
[377414623,1754398040581,441.084274,0.00020187,2]
[377414624,1754398040810,441.084274,0.00026676,2]
[377414625,1754398041899,5000.0,0.00026871,2]
[377414626,1754398046997,1023.57,0.000285,120]
[377414627,1754398047293,209.2314106,0.00025918,2]
[377414629,1754398058066,5000.0,0.00026871,2]
[377414630,1754398073718,5000.0,0.00026871,2]
[377414631,1754398083027,200.0,0.00025918,15]
[377414632,1754398084631,300.0,0.0002687,2]
[377414634,1754398089028,150.0,0.00023961,2]
[377414635,1754398090174,501.38211044,0.00026871,2]
[377414636,1754398113511,2747.56870793,0.000249,2]
[377414637,1754398113599,2747.56870793,0.000249,2]
[377414638,1754398113836,2747.56870793,0.000249,2]
[377414639,1754398113926,2231.1234621,0.000249,2]
[377414640,1754398113957,516.44524583,0.000249,2]
[377414641,1754398114016,2747.56870793,0.000249,2]
[377414642,1754398114104,2747.56870793,0.000249,2]
[377414643,1754398114196,2747.56870793,0.000249,2]
[377414644,1754398114289,2747.56870793,0.000249,2]
[377414645,1754398115067,2747.56870793,0.00025455,3]
[377414646,1754398115203,2747.56870793,0.00026762,6]
[377414647,1754398120690,206.28856532,0.00025205,30]
[377414648,1754398142335,300.0,0.0002687,2]
[377414649,1754398159647,159.94576799,0.00026065,2]
[377414650,1754398164658,150.0,0.00023958,2]
[377414652,1754398175720,9176.9921264,0.00025926,2]
[377414653,1754398188523,527.2395911,0.00030136,120]
[377414654,1754398202664,300.0,0.0002687,2]
[377414689,1754398231768,-461.4225,0.00026871,2]
[377414691,1754398231781,-353.79393509,0.00026871,2]
[377414693,1754398231794,-4060.91967154,0.00026871,2]
[377414696,1754398231806,-324.51527346,0.00026871,2]
[377414705,1754398231886,-2709.74922761,0.00026871,2]
[377414707,1754398231897,-759.34798424,0.00026873,2]
[377414710,1754398231908,-232.40647808,0.00026873,2]
[377414712,1754398231918,-9733.53190679,0.00026946,2]
[377414715,1754398231928,-183.51190092,0.00026949,2]
[377414718,1754398231937,-175.379,0.00026949,15]
[377414721,1754398231948,-151.0,0.0002695,2]
[377414724,1754398231959,-151.0,0.0002695,2]
[377414726,1754398231968,-151.0,0.0002695,2]
[377414730,1754398231978,-151.0,0.0002695,2]
[377414732,1754398231988,-151.0,0.0002695,2]
[377414735,1754398231997,-151.0,0.0002695,2]
[377414738,1754398232006,-151.0,0.0002695,2]
[377414740,1754398232016,-151.0,0.0002695,2]
[377414743,1754398232025,-151.0,0.0002695,2]
[377414745,1754398232034,-151.0,0.0002695,2]
[377414747,1754398232044,-151.0,0.0002695,2]
[377414748,1754398232054,-151.0,0.0002695,2]
[377414750,1754398232064,-151.0,0.0002695,2]
[377414752,1754398232073,-151.0,0.0002695,2]
[377414754,1754398232083,-151.0,0.0002695,2]
[377414756,1754398232092,-151.0,0.0002695,2]
[377414757,1754398232101,-151.0,0.0002695,2]
[377414759,1754398232111,-151.0,0.0002695,2]
[377414760,1754398232120,-151.0,0.0002695,2]
[377414762,1754398232130,-151.0,0.0002695,2]
[377414763,1754398232140,-151.0,0.0002695,2]
[377414764,1754398232149,-250.0,0.0002695,2]
[377414765,1754398232159,-250.0,0.0002695,2]
[377414766,1754398232168,-22188.54324152,0.0002695,2]
[377414767,1754398232178,-250.0,0.0002695,2]
[377414768,1754398232298,-250.0,0.0002695,2]
[377414769,1754398232307,-250.0,0.0002695,2]
[377414770,1754398232317,-800.0,0.00026952,2]
[377414771,1754398232327,-500.0,0.00026954,2]
[377414772,1754398232336,-10377.71137644,0.00026956,2]
[377414773,1754398232348,-11373.0,0.00026956,2]
[377414787,1754398237692,-509.32012587,0.00026944,2]
[377414799,1754398239838,-102.40563033,0.00026944,2]
[377414800,1754398239848,-500.0,0.00026944,2]
[377414801,1754398239858,-500.0,0.00026944,2]
[377414802,1754398239868,-500.0,0.00026944,2]
[377414803,1754398239878,-500.0,0.00026944,2]
[377414804,1754398239887,-361.22984758,0.00026944,2]
[377414805,1754398239896,-500.0,0.00026944,2]
[377414806,1754398239906,-366.69901186,0.00026944,2]
[377414807,1754398239915,-528.54259287,0.00026944,2]
[377414808,1754398239924,-250.0,0.0002695,2]
[377414809,1754398239933,-250.0,0.0002695,2]
[377414810,1754398239943,-250.0,0.0002695,2]
[377414812,1754398239952,-250.0,0.0002695,2]
[377414813,1754398239961,-250.0,0.0002695,2]
[377414814,1754398239970,-311.60433701,0.0002695,2]
[377414815,1754398239979,-151.0,0.0002695,2]
[377414816,1754398239989,-151.0,0.0002695,2]
[377414817,1754398239999,-13094.46600808,0.00026956,2]
[377414825,1754398242720,-151.0,0.0002695,2]
[377414827,1754398242730,-151.0,0.0002695,2]
[377414828,1754398242740,-162.94348863,0.0002695,2]
[377414829,1754398242749,-12018.43724606,0.00026956,2]
[377414851,1754398248532,-270.1,0.00026956,2]
[377414852,1754398275988,217.598674,0.00026762,6]
[377414853,1754398279823,1878.77394589,0.000249,2]
[377414854,1754398282052,608.54342699,0.000249,2]
[377414855,1754398282083,1270.23051888,0.000249,2]
[377414856,1754398282145,1878.77394587,0.000249,2]
[377414857,1754398282308,1878.77394587,0.000249,2]
[377414858,1754398282541,1878.77394587,0.000249,2]
[377414859,1754398282591,1878.77394587,0.000249,2]
[377414860,1754398282626,1214.67369764,0.000249,2]
[377414861,1754398282658,664.10024823,0.000249,2]
[377414862,1754398282706,1878.77394587,0.000249,2]
[377414863,1754398282827,1878.77394587,0.00025455,3]
[377414864,1754398283121,1878.77394587,0.00026762,6]
[377414866,1754398291739,3699.57791416,0.00025953,2]
[377414867,1754398291764,10000.0,0.00025953,2]
[377414868,1754398291788,9868.58950574,0.00025953,2]
[377414869,1754398310991,131.41049426,0.00026871,2]
[377414870,1754398311015,3800.31242521,0.00026871,2]
[377414871,1754398312068,1003.06888304,0.0002485,2]
[377414872,1754398369056,336.21,0.00026479,2]
[377414873,1754398407959,165.726138,0.00026136,2]
[377414874,1754398408181,165.726138,0.00026136,120]
[377414875,1754398408674,2926.59617861,0.00026855,2]
[377414876,1754398410576,1000.0,0.00025929,2]
[377414877,1754398423488,768.08637514,0.00026856,2]
[377414878,1754398423511,10000.0,0.00026856,2]
[377414879,1754398423533,10000.0,0.00026856,2]
[377414880,1754398423555,10000.0,0.00026856,2]
[377414881,1754398423577,10000.0,0.00026856,2]
[377414882,1754398423599,10000.0,0.00026856,2]
[377414883,1754398423623,10000.0,0.00026856,2]
[377414884,1754398423643,10000.0,0.00026856,2]
[377414885,1754398423666,10000.0,0.00026856,2]
[377414886,1754398423688,10000.0,0.00026856,2]
[377414887,1754398423709,10000.0,0.00026856,2]
[377414888,1754398423730,10000.0,0.00026856,2]
[377414889,1754398423751,10000.0,0.00026856,2]
[377414890,1754398423773,10000.0,0.00026856,2]
[377414891,1754398423793,10000.0,0.00026856,2]
[377414892,1754398423814,10000.0,0.00026856,2]
[377414893,1754398423835,10000.0,0.00026856,2]
[377414894,1754398423855,10000.0,0.00026856,2]
[377414895,1754398423876,10000.0,0.00026856,2]
[377414896,1754398423897,10000.0,0.00026856,2]
[377414897,1754398423918,10000.0,0.00026856,2]
[377414898,1754398423940,10000.0,0.00026856,2]
[377414899,1754398423961,10000.0,0.00026856,2]
[377414900,1754398423982,10000.0,0.00026856,2]
[377414901,1754398424004,10000.0,0.00026856,2]
[377414902,1754398424026,10000.0,0.00026856,2]
[377414903,1754398424047,10000.0,0.00026856,2]
[377414904,1754398424068,10000.0,0.00026856,2]
[377414905,1754398424090,10000.0,0.00026856,2]
[377414906,1754398424112,10000.0,0.00026856,2]
[377414907,1754398424134,10000.0,0.00026856,2]
[377414908,1754398424159,10000.0,0.00026856,2]
[377414909,1754398424182,10000.0,0.00026856,2]
[377414910,1754398424294,10000.0,0.00026856,2]
[377414911,1754398424319,10000.0,0.00026856,2]
[377414912,1754398424341,10000.0,0.00026856,2]
[377414913,1754398424364,10000.0,0.00026856,2]
[377414914,1754398424386,9231.91362486,0.00026856,2]
[377414915,1754398433414,206.28856532,0.00025205,30]
[377414916,1754398434718,561.79780982,0.000249,2]
[377414917,1754398434751,976.16384354,0.000249,2]
[377414918,1754398434806,1537.96165308,0.000249,2]
[377414919,1754398434903,1537.96165308,0.000249,2]
[377414920,1754398435002,1537.96165308,0.000249,2]
[377414921,1754398435691,1537.96165308,0.000249,2]
[377414922,1754398435790,1537.96165308,0.000249,2]
[377414923,1754398435870,1537.96165308,0.000249,2]
[377414924,1754398435950,318.08310726,0.000249,2]
[377414925,1754398435978,1219.87854582,0.000249,2]
[377414926,1754398436052,1537.96165308,0.00025455,3]
[377414928,1754398443547,262.58041745,0.000265,2]
[377414930,1754398481211,-1537.96165308,0.00026762,6]
[377414932,1754398511610,200.15,0.0002687,2]
[377414935,1754398546730,394.019271,0.00025925,2]
[377414938,1754398583702,6329.90742284,0.00026856,2]
[377414939,1754398583726,10000.0,0.00026856,2]
[377414940,1754398583749,10000.0,0.00026856,2]
[377414941,1754398583773,10000.0,0.00026856,2]
[377414942,1754398583796,10000.0,0.00026856,2]
[377414943,1754398583819,10000.0,0.00026856,2]
[377414944,1754398583842,10000.0,0.00026856,2]
[377414945,1754398583865,10000.0,0.00026856,2]
[377414946,1754398583887,10000.0,0.00026856,2]
[377414947,1754398583910,10000.0,0.00026856,2]
[377414948,1754398583933,10000.0,0.00026856,2]
[377414949,1754398583957,10000.0,0.00026856,2]
[377414950,1754398583979,10000.0,0.00026856,2]
[377414951,1754398584002,10000.0,0.00026856,2]
[377414952,1754398584029,10000.0,0.00026856,2]
[377414953,1754398584052,10000.0,0.00026856,2]
[377414954,1754398584075,10000.0,0.00026856,2]
[377414955,1754398584097,10000.0,0.00026856,2]
[377414956,1754398584120,10000.0,0.00026856,2]
[377414957,1754398584142,10000.0,0.00026856,2]
[377414958,1754398584165,10000.0,0.00026856,2]
[377414960,1754398592951,1120.25067938,0.000249,2]
[377414961,1754398593047,1120.25067936,0.000249,2]
[377414962,1754398593277,1120.25067936,0.000249,2]
[377414963,1754398593343,1120.25067936,0.000249,2]
[377414964,1754398593417,1120.25067936,0.000249,2]
[377414965,1754398593487,431.31486536,0.000249,2]
[377414966,1754398593518,688.935814,0.000249,2]
[377414967,1754398593609,1120.25067936,0.000249,2]
[377414968,1754398593710,1120.25067936,0.000249,2]
[377414969,1754398593797,1120.25067936,0.00025455,3]
[377414971,1754398594865,5000.0,0.000265,2]
[377414975,1754398615921,861.15027953,0.00024771,2]
[377414978,1754398627225,-1120.25067936,0.00026762,6]
[377414979,1754398627255,-300.0,0.00026854,2]
[377414980,1754398627284,-178.44456408,0.00026855,2]
[377414981,1754398627317,-500.0,0.00026855,2]
[377414982,1754398627350,-500.0,0.00026855,2]
[377414983,1754398627381,-500.0,0.00026855,2]
[377414984,1754398627415,-201.82122837,0.00026855,2]
[377414985,1754398627446,-500.0,0.00026855,2]
[377414986,1754398627475,-616.25045148,0.00026855,2]
[377414987,1754398627506,-409.68522204,0.00026855,2]
[377414988,1754398627638,-500.0,0.00026855,2]
[377414989,1754398627668,-404.51981187,0.00026855,2]
[377414990,1754398627700,-500.0,0.00026855,2]
[377414991,1754398627735,-500.0,0.00026855,2]
[377414992,1754398627768,-552.85425929,0.00026855,2]
[377414993,1754398627802,-500.0,0.00026855,2]
[377414994,1754398627836,-500.03831811,0.00026855,2]
[377414995,1754398627867,-1200.0,0.00026855,2]
[377415003,1754398683728,300.0,0.00026855,2]
[377415004,1754398688933,385.17522146,0.00026764,2]
[377415005,1754398688957,2175.59643478,0.00026764,2]
[377415008,1754398719859,7824.40356522,0.00026846,2]
[377415009,1754398719881,9763.09763698,0.00026846,2]
[377415010,1754398732169,236.90236302,0.00026855,2]
[377415011,1754398732192,3498.77052595,0.00026855,2]
[377415012,1754398743486,300.0,0.00026855,2]
[377415013,1754398747153,206.28856532,0.00025205,30]
[377415015,1754398751955,787.450504,0.000249,2]
[377415016,1754398752054,787.45050379,0.000249,2]
[377415017,1754398752134,787.45050379,0.000249,2]
[377415018,1754398752253,787.45050379,0.000249,2]
[377415019,1754398752373,787.45050379,0.000249,2]
[377415020,1754398752553,787.45050379,0.000249,2]
[377415021,1754398752603,787.45050379,0.000249,2]
[377415022,1754398752639,482.78738199,0.000249,2]
[377415023,1754398752669,304.6631218,0.000249,2]
[377415024,1754398752725,787.45050379,0.00025455,3]
[377415025,1754398753994,787.45050379,0.00026762,6]
[377415027,1754398762243,171.93659942,0.0002605,2]
[377415028,1754398786777,1000.0,0.0003,120]
[377415029,1754398797993,198.799771,0.00027397,120]
[377415030,1754398802405,300.0,0.00026855,2]
[377415031,1754398803053,1200.0,0.00026855,2]
[377415032,1754398812500,500.8004463,0.00025871,2]
[377415033,1754398841673,1459.330234,0.00025871,2]
[377415034,1754398847608,8889.78,0.00030555,60]
[377415035,1754398858148,2015.35015192,0.00026855,2]
[377415036,1754398862872,300.0,0.00026855,2]
[377415037,1754398886091,1173.65,0.00026846,3]
[377415038,1754398887448,206.71874,0.00026762,6]
[377415039,1754398888598,792.64969898,0.0002519,2]
[377415040,1754398888621,4193.18030102,0.0002519,2]
[377415041,1754398896726,586.83,0.00026846,3]
[377415042,1754398898415,175.379,0.00026849,14]
[377415043,1754398900310,268.96,0.00026457,2]
[377415044,1754398907438,293.41,0.00026846,3]
[377415045,1754398910208,1316.07531238,0.000249,2]
[377415046,1754398910293,1316.07531226,0.000249,2]
[377415047,1754398910552,1316.07531226,0.000249,2]
[377415048,1754398910628,534.01476208,0.000249,2]
[377415049,1754398910657,782.06055018,0.000249,2]
[377415050,1754398910721,1316.07531226,0.000249,2]
[377415051,1754398910837,1316.07531226,0.000249,2]
[377415052,1754398910940,1316.07531226,0.000249,2]
[377415053,1754398911055,1316.07531226,0.000249,2]
[377415054,1754398911158,1316.07531226,0.00025455,3]
[377415055,1754398911239,1316.07531226,0.00026762,6]
[377415057,1754398917235,711.12313698,0.00024846,2]
[377415058,1754398918091,610.36443928,0.00026846,3]
[377415059,1754398918116,269.91556072,0.00026846,3]
[377415060,1754398922015,1000.0,0.0003,120]
[377415061,1754398922431,300.0,0.00026855,2]
[377415062,1754398960987,9430.08443928,0.00026855,2]
[377415063,1754398961012,2919.96556072,0.00026855,2]
[377415064,1754398983357,2240.67519921,0.00026756,2]
[377415065,1754398989189,300.0,0.00026855,2]
[377415067,1754399015707,407.106098,0.00013699,2]
[377415068,1754399015927,407.106098,0.00020187,2]
[377415069,1754399017928,407.106098,0.00026676,2]
[377415070,1754399021770,395.3594578,0.00026846,2]
[377415071,1754399043096,300.0,0.00026855,2]
[377415072,1754399065433,1891.15342712,0.000249,2]
[377415073,1754399065542,731.52806115,0.000249,2]
[377415074,1754399065573,1159.62536576,0.000249,2]
[377415075,1754399065621,1891.15342691,0.000249,2]
[377415076,1754399065697,1891.15342691,0.000249,2]
[377415077,1754399065781,1891.15342691,0.000249,2]
[377415078,1754399065885,1891.15342691,0.000249,2]
[377415079,1754399069731,1275.7609266,0.000249,2]
[377415080,1754399069760,615.39250031,0.000249,2]
[377415081,1754399069846,1891.15342691,0.000249,2]
[377415082,1754399069918,1891.15342691,0.00025455,3]
[377415083,1754399070015,1891.15342691,0.00026762,6]
[377415085,1754399102531,300.0,0.00026855,2]
[377415086,1754399113959,495.00652271,0.0002684,2]
[377415087,1754399120288,151.0,0.0002684,2]
[377415088,1754399120809,151.0,0.0002684,2]
[377415089,1754399121733,151.0,0.0002684,2]
[377415090,1754399127566,151.0,0.0002684,2]
[377415091,1754399128459,151.0,0.0002684,2]
[377415092,1754399128870,2161.14069625,0.0002684,2]
[377415093,1754399128894,10000.0,0.0002684,2]
[377415094,1754399128918,10000.0,0.0002684,2]
[377415095,1754399128942,27.40254527,0.0002684,2]
[377415096,1754399129455,9972.59745473,0.00025869,2]
[377415097,1754399129484,10000.0,0.00025869,2]
[377415098,1754399129510,4927.40254527,0.00025869,2]
[377415099,1754399129541,151.0,0.0002684,2]
[377415100,1754399130704,151.0,0.0002684,2]
[377415101,1754399131420,151.0,0.0002684,2]
[377415102,1754399132296,151.0,0.0002684,2]
[377415103,1754399133225,151.0,0.0002684,2]
[377415104,1754399134884,151.0,0.0002684,2]
[377415105,1754399135452,203.23431875,0.0002684,2]
[377415106,1754399135918,151.0,0.0002684,2]
[377415107,1754399136786,151.0,0.0002684,2]
[377415108,1754399137656,151.0,0.0002684,2]
[377415109,1754399139394,151.0,0.0002684,2]
[377415110,1754399140285,151.0,0.0002684,2]
[377415111,1754399141272,151.0,0.0002684,2]
[377415112,1754399142112,151.0,0.0002684,2]
[377415113,1754399143506,151.0,0.0002684,2]
[377415114,1754399144409,151.0,0.0002684,2]
[377415115,1754399145377,151.0,0.0002684,2]
[377415116,1754399146517,151.0,0.0002684,2]
[377415117,1754399147621,151.0,0.0002684,2]
[377415118,1754399159428,2151.36313598,0.00026855,2]
[377415119,1754399159457,871.66209191,0.00026855,2]
[377415120,1754399160292,1511.51261395,0.00026855,2]
[377415121,1754399161524,755.75630697,0.00026855,2]
[377415122,1754399162843,377.87815349,0.00026855,2]
[377415123,1754399163163,300.0,0.00026855,2]
[377415124,1754399163936,188.93907674,0.00026855,2]
[377415125,1754399184693,220.3946588,0.00026855,2]
[377415126,1754399205680,200.0,0.0003013,120]
[377415128,1754399218417,474.08209132,0.00024756,2]
[377415131,1754399223236,300.0,0.00026855,2]
[377415132,1754399233223,2983.18013218,0.000249,2]
[377415133,1754399233486,2016.59487464,0.000249,2]
[377415134,1754399233521,966.58525734,0.000249,2]
[377415135,1754399233813,2983.18013198,0.000249,2]
[377415136,1754399234018,2983.18013198,0.000249,2]
[377415137,1754399234067,2983.18013198,0.000249,2]
[377415138,1754399234127,83.87434672,0.000249,2]
[377415139,1754399234159,2899.30578526,0.000249,2]